bitfinex-derivatives/quotes_SOLF0:USTF0_20250919
["timestamp","ask_amount","ask_price","bid_price","bid_amount"]
[1758258415252,0.02690981,244.72,244.65,6.77]
[1758258416850,1.38624945,244.72,244.65,6.77]
[1758258417452,0.02690981,244.72,244.65,6.77]
[1758258417655,1.35933964,244.71,244.65,6.77]
[1758258417958,0.02690981,244.72,244.65,6.77]
[1758258420361,0.02690981,244.72,244.65,10.17750929]
[1758258421160,1.15,244.68,244.65,6.77]
[1758258421467,2.12625334,244.69,244.63,6.55]
[1758258424764,2.12625334,244.69,244.58,6.55]
[1758258425458,0.03047462,244.66,244.58,6.55]
[1758258427369,2.12625334,244.65,244.58,6.55]
[1758258429972,2.15672796,244.66,244.58,6.55]
[1758258430477,3.30672796,244.66,244.58,6.55]
[1758258439677,1.18047462,244.66,244.58,6.55]
[1758258439879,2.12625334,244.64,244.58,6.55]
[1758258441487,1.15,244.63,244.58,6.55]
[1758258441677,3.27625334,244.61,244.58,6.55]
[1758258441878,1.15,244.6,244.5,6.55]
[1758258442187,2.12625334,244.65,244.51,6.55]
[1758258442582,0.02703667,244.57,244.51,6.55]
[1758258443784,0.02703667,244.57,244.51,10.229]
[1758258443984,0.02703667,244.57,244.51,3.679]
[1758258444286,0.02703667,244.57,244.52,6.55]
[1758258459494,0.71163461,244.67,244.52,6.55]
[1758258459692,1.02198651,244.67,244.52,6.55]
[1758258459891,3.28625334,244.68,244.52,6.55]
[1758258460097,1.02190748,244.67,244.53,3.6787]
[1758258460291,3.28625334,244.68,244.54,3.56932351]
[1758258460495,1.02190748,244.67,244.55,3.56932351]
[1758258460696,1.02190748,244.67,244.57,6.57]
[1758258460998,1.02190748,244.67,244.59,6.57]
[1758258461297,3.28625334,244.68,244.59,6.57]
[1758258461298,3.28625334,244.68,244.6,3.56932351]
[1758258461500,0.02638616,244.65,244.61,3.60079605]
[1758258461692,0.02638616,244.65,244.63,6.57]
[1758258462001,0.02638616,244.65,244.64,3.56932351]
[1758258462193,0.02638616,244.65,244.64,10.13932351]
[1758258462389,0.02638616,244.65,244.64,6.57]
[1758258468302,6.87498034,244.78,244.64,6.57]
[1758258468303,4.56485188,244.78,244.64,6.57]
[1758258468504,0.71147457,244.74,244.64,6.57]
[1758258468698,1.21,244.75,244.64,6.57]
[1758258468896,3.1479913,244.74,244.64,6.57]
[1758258469101,2.12625334,244.74,244.64,6.57]
[1758258469602,2.12625334,244.74,244.68,6.57]
[1758258470000,2.12625334,244.77,244.68,6.57]
[1758258470199,1.02157377,244.76,244.68,6.57]
[1758258475101,0.71132187,244.8,244.68,6.57]
[1758258475301,1.21,244.86,244.72,6.57]
[1758258475599,1.21,244.86,244.75,2.12625334]
[1758258475600,1.02128486,244.85,244.75,2.12625334]
[1758258475804,2.12625334,244.87,244.76,6.89]
[1758258476005,1.02121847,244.86,244.78,6.89]
[1758258476201,2.12625334,244.9,244.78,6.89]
[1758258476403,1.02116798,244.89,244.78,6.89]
[1758258476602,1.02116798,244.89,244.82,0.02810175]
[1758258476803,1.02116798,244.89,244.83,6.89]
[1758258478000,1.2,244.92,244.83,6.89]
[1758258478203,1.02110958,244.91,244.83,6.89]
[1758258478398,0.02785441,244.9,244.83,6.89]
[1758258478806,0.02785441,244.9,244.76,16.4]
[1758258478807,0.02785441,244.9,244.85,6.69]
[1758258479706,0.02785441,244.9,244.87,1.35788185]
[1758258480406,0.02785441,244.9,244.88,6.69]
[1758258481004,0.02785441,244.9,244.87,1.35788185]
[1758258481204,0.02785441,244.9,244.88,6.69]
[1758258481905,1.19,245.07,244.9,6.69]
[1758258482098,1.19,245.07,244.94,6.69]
[1758258482304,1.35788185,245.03,244.94,6.69]
[1758258483006,1.35788185,245.03,244.95,1.35788185]
[1758258483207,1.35788185,245.03,244.96,6.71603944]
[1758258483407,1.90047957,245.07,244.96,6.71603944]
[1758258483609,1.22,245.0,244.96,6.71603944]
[1758258483905,2.57788185,244.97,244.96,0.02603944]
[1758258486703,2.97788185,244.97,244.96,0.02603944]
[1758258487412,2.57788185,244.97,244.96,0.02603944]
[1758258489307,2.97788185,244.97,244.96,0.02603944]
[1758258490709,2.57788185,244.97,244.96,0.02603944]
[1758258494311,2.97788185,244.97,244.96,0.02603944]
[1758258495203,2.57788185,244.97,244.96,0.02603944]
[1758258506915,1.22,244.97,244.96,0.02603944]
[1758258510111,0.02765994,244.99,244.97,6.46]
[1758258511021,0.02765994,244.99,244.96,0.02603944]
[1758258511221,1.24765994,244.99,244.96,0.02603944]
[1758258511422,1.02080823,244.98,244.96,0.02603944]
[1758258511617,0.02765994,244.99,244.97,6.46]
[1758258512113,0.02765994,244.99,244.96,0.02603944]
[1758258512924,0.02765994,244.99,244.97,6.46]
[1758258513518,0.02765994,244.99,244.96,0.02603944]
[1758258514022,0.02765994,244.99,244.96,6.48603944]
[1758258515112,0.02765994,244.99,244.97,6.46]
[1758258515314,0.02765994,244.99,244.96,1.38392129]
[1758258515521,0.02765994,244.99,244.97,6.46]
[1758258515823,0.02765994,244.99,244.96,1.38392129]
[1758258516018,0.02765994,244.99,244.97,6.46]
[1758258516218,1.04831793,244.99,244.97,6.46]
[1758258516424,0.02765994,244.99,244.96,1.38392129]
[1758258516722,0.02765994,244.99,244.97,6.46]
[1758258516922,0.02765994,244.99,244.96,1.38392129]
[1758258517324,0.02765994,244.99,244.97,6.46]
[1758258517517,0.02765994,244.99,244.96,1.38392129]
[1758258517723,0.02765994,244.99,244.97,6.46]
[1758258518023,0.02765994,244.99,244.96,1.38392129]
[1758258518223,0.02765994,244.99,244.97,6.46]
[1758258518423,0.02765994,244.99,244.96,1.38392129]
[1758258519021,0.02765994,244.99,244.97,6.46]
[1758258519330,0.02765994,244.99,244.96,1.38392129]
[1758258520328,0.02765994,244.99,244.97,6.46]
[1758258521630,0.02765994,244.99,244.96,1.38392129]
[1758258522027,0.02765994,244.99,244.97,6.46]
[1758258522228,0.02765994,244.99,244.96,1.38392129]
[1758258522424,0.02765994,244.99,244.97,6.46]
[1758258522730,0.02765994,244.99,244.96,1.38392129]
[1758258522930,0.02765994,244.99,244.97,6.46]
[1758258523130,0.02765994,244.99,244.96,1.38392129]
[1758258523532,0.02765994,244.99,244.97,6.46]
[1758258523735,0.02765994,244.99,244.96,1.38392129]
[1758258523929,0.02765994,244.99,244.97,6.46]
[1758258524635,0.02765994,244.99,244.96,1.38392129]
[1758258525133,0.02765994,244.99,244.97,6.46]
[1758258525329,0.02765994,244.99,244.96,1.38392129]
[1758258525529,0.02765994,244.99,244.97,6.46]
[1758258525930,0.02765994,244.99,244.96,1.38392129]
[1758258526532,0.02765994,244.99,244.97,6.46]
[1758258527037,0.02765994,244.99,244.96,1.38392129]
[1758258527237,0.02765994,244.99,244.97,6.46]
[1758258527733,0.02765994,244.99,244.96,1.38392129]
[1758258528330,0.02765994,244.99,244.97,6.46]
[1758258528830,1.22,244.98,244.96,0.02603944]
[1758258529037,2.24065799,244.97,244.96,0.02603944]
[1758258532237,1.02065799,244.97,244.96,6.48603944]
[1758258532541,1.04831793,244.99,244.96,0.02603944]
[1758258532737,1.02065799,244.98,244.96,0.02603944]
[1758258532933,1.02065799,244.97,244.96,6.48603944]
[1758258533139,0.02765994,244.99,244.97,6.46]
[1758258536042,0.02765994,244.99,244.96,0.02603944]
[1758258536443,1.04836335,244.99,244.97,6.68]
[1758258536742,1.02070341,244.98,244.97,6.68]
[1758258537142,1.02070341,244.98,244.96,0.02603944]
[1758258537343,1.02069059,244.97,244.96,6.70603944]
[1758258537743,1.02069059,244.97,244.96,0.02603944]
[1758258538044,0.02765994,244.99,244.96,0.02603944]
[1758258538743,0.02765994,244.99,244.97,6.6]
[1758258541937,0.02765994,244.99,244.97,6.6]
[1758258543147,0.02765994,244.99,244.96,0.02603944]
[1758258543344,2.14862988,244.99,244.96,0.02603944]
[1758258543648,1.23,244.97,244.96,0.02603944]
[1758258543849,1.02069059,244.97,244.96,0.02603944]
[1758258544645,1.02069059,244.98,244.96,0.02603944]
[1758258544844,1.02069059,244.97,244.96,0.02603944]
[1758258545151,1.02069059,244.97,244.96,6.62603944]
[1758258545455,0.02765994,244.99,244.97,6.6]
[1758258546140,0.02765994,244.99,244.96,0.02603944]
[1758258546342,0.02765994,244.99,244.97,6.6]
[1758258547851,0.02765994,244.99,244.98,10.284343]
[1758258548846,0.02765994,244.99,244.98,6.6]
[1758258549045,0.02765994,244.99,244.96,0.02603944]
[1758258549250,0.02765994,244.99,244.96,6.62603944]
[1758258549851,0.02765994,244.99,244.97,6.6]
[1758258550642,0.02765994,244.99,244.96,0.02603944]
[1758258550846,0.02765994,244.99,244.97,6.6]
[1758258551043,0.02765994,244.99,244.96,0.02603944]
[1758258551353,0.02765994,244.99,244.97,6.6]
[1758258552053,0.02765994,244.99,244.96,0.02603944]
[1758258552250,0.02765994,244.99,244.97,6.6]
[1758258552550,0.02765994,244.99,244.96,0.02603944]
[1758258552951,0.02765994,244.99,244.97,6.6]
[1758258553351,0.02765994,244.99,244.96,0.02603944]
[1758258553855,0.02765994,244.99,244.97,6.6]
[1758258556353,0.02765994,244.99,244.96,0.02603944]
[1758258556354,1.23,244.98,244.96,0.02603944]
[1758258556551,1.02066444,244.97,244.96,0.02603944]
[1758258557552,1.02066444,244.97,244.96,6.62603944]
[1758258557761,0.02765994,244.99,244.97,6.6]
[1758258557960,0.02765994,244.99,244.96,0.02603944]
[1758258558157,0.02765994,244.99,244.97,6.6]
[1758258558358,0.02765994,244.99,244.96,0.02603944]
[1758258558756,0.02765994,244.99,244.97,6.6]
[1758258559159,0.02765994,244.99,244.96,0.02603944]
[1758258559357,0.02765994,244.99,244.97,6.6]
[1758258560159,0.02765994,244.99,244.96,0.02603944]
[1758258560655,1.04841578,244.99,244.96,0.02603944]
[1758258560857,0.02765994,244.99,244.97,6.6]
[1758258561156,0.02765994,244.99,244.96,0.02603944]
[1758258561855,0.02765994,244.99,244.97,6.6]
[1758258562263,0.02765994,244.99,244.96,0.02603944]
[1758258562665,0.02765994,244.99,244.97,6.6]
[1758258562867,0.02765994,244.99,244.96,0.02603944]
[1758258563056,0.02765994,244.99,244.97,6.6]
[1758258568069,0.02765994,244.99,244.98,3.63109759]
[1758258569065,0.02765994,244.99,244.97,6.6]
[1758258569265,0.02765994,244.99,244.96,0.02603944]
[1758258569665,0.02765994,244.99,244.97,6.7]
[1758258570168,0.02765994,244.99,244.96,0.02603944]
[1758258570370,0.02765994,244.99,244.97,6.7]
[1758258570670,0.02765994,244.99,244.96,0.02603944]
[1758258571168,0.02765994,244.99,244.97,6.7]
[1758258571569,0.02765994,244.99,244.96,0.02603944]
[1758258571958,0.02765994,244.99,244.97,6.7]
[1758258572360,0.02765994,244.99,244.96,0.02603944]
[1758258573170,0.02765994,244.99,244.97,6.7]
[1758258576969,0.02765994,244.99,244.96,0.02603944]
[1758258577270,0.02765994,244.99,244.98,6.7]
[1758258577465,0.02765994,244.99,244.98,10.32121845]
[1758258592680,0.02765994,244.99,244.98,3.62121845]
[1758258592883,1.23765994,244.99,244.98,3.62121845]
[1758258593579,1.21,244.98,244.96,0.02603944]
[1758258595484,1.21,244.98,244.96,6.72603944]
[1758258596086,1.21,244.98,244.96,0.02603944]
[1758258596481,0.02765994,244.99,244.96,0.02603944]
[1758258597179,1.22,244.98,244.96,0.02603944]
[1758258597383,0.02765994,244.99,244.96,0.02603944]
[1758258597687,1.22,244.98,244.96,0.02603944]
[1758258598082,1.23,244.98,244.96,0.02603944]
[1758258598387,0.02765994,244.99,244.96,0.02603944]
[1758258599791,1.23,244.98,244.96,0.02603944]
[1758258601788,1.3578838,244.97,244.96,0.02603944]
[1758258606089,2.5878838,244.97,244.96,0.02603944]
[1758258608088,2.5878838,244.97,244.87,6.85]
[1758258608386,2.5878838,244.93,244.87,6.85]
[1758258609585,1.23,244.92,244.88,6.87805115]
[1758258609891,1.3578838,244.93,244.89,6.85]
[1758258610084,1.3578838,244.93,244.88,0.02805115]
[1758258611389,2.5878838,244.93,244.89,6.85]
[1758258611792,2.5878838,244.93,244.88,0.02805115]
[1758258611993,2.5878838,244.93,244.89,6.85]
[1758258613896,1.23,244.92,244.89,6.85]
[1758258614093,1.3578838,244.9,244.88,0.02805115]
[1758258614398,1.23,244.89,244.88,0.02805115]
[1758258615094,1.3578838,244.93,244.88,0.02805115]
[1758258615692,1.23,244.92,244.88,0.02805115]
[1758258615893,1.3578838,244.93,244.88,0.02805115]
[1758258616890,1.23,244.92,244.88,0.02805115]
[1758258617194,1.3578838,244.93,244.88,0.02805115]
[1758258617393,1.23,244.92,244.88,0.02805115]
[1758258617595,1.3578838,244.93,244.88,0.02805115]
[1758258618192,1.23,244.92,244.88,0.02805115]
[1758258618496,1.3578838,244.93,244.88,0.02805115]
[1758258618796,1.23,244.92,244.88,0.02805115]
[1758258619096,1.3578838,244.93,244.88,0.02805115]
[1758258619591,1.23,244.89,244.88,0.02805115]
[1758258620095,1.23,244.89,244.83,6.85]
[1758258620391,1.23,244.89,244.86,6.87674503]
[1758258621593,1.23,244.89,244.87,6.85]
[1758258621797,1.3578838,244.93,244.87,6.85]
[1758258622493,1.23,244.92,244.88,6.88093404]
[1758258622696,1.3578838,244.93,244.88,6.88093404]
[1758258622999,1.23,244.92,244.88,0.03093404]
[1758258623200,1.23,244.92,244.89,6.85]
[1758258625402,1.23,244.97,244.89,6.85]
[1758258625603,1.3578838,244.96,244.89,6.85]
[1758258626002,1.3578838,244.96,244.9,0.02632171]
[1758258626199,1.3578838,244.96,244.91,6.85]
[1758258626499,1.23,244.93,244.9,0.02632171]
[1758258626702,1.23,244.93,244.9,6.87632171]
[1758258627098,1.3578838,244.94,244.9,0.02632171]
[1758258627298,1.3578838,244.96,244.9,6.87632171]
[1758258628105,1.23,244.97,244.9,6.87632171]
[1758258628307,1.3578838,244.98,244.9,6.87632171]
[1758258631208,1.3578838,245.0,244.92,6.82]
[1758258633908,1.3578838,245.0,244.94,6.82]
[1758258634106,1.3578838,245.0,244.95,3.60389392]
[1758258634308,2.5778838,245.0,244.96,10.42389392]
[1758258634515,2.5778838,245.0,244.97,10.42389392]
[1758258634805,2.5778838,245.0,244.98,3.60389392]
[1758258635011,2.5778838,245.0,244.99,3.60389392]
[1758258646629,1.3578838,245.0,244.99,3.60389392]
[1758258647529,1.3578838,245.0,244.99,10.42389392]
[1758258648129,1.3578838,245.0,244.99,3.60389392]
[1758258648527,2.5778838,245.0,244.99,3.60389392]
[1758258649532,2.5778838,245.0,244.99,3.61360946]
[1758258650432,2.9778838,245.0,244.99,3.61360946]
[1758258650827,2.5778838,245.0,244.99,3.61360946]
[1758258651333,1.22,244.99,244.96,0.02888263]
[1758258651633,101.0178838,244.98,244.96,0.02888263]
[1758258651932,102.2378838,244.98,244.96,0.02888263]
[1758258652332,102.2378838,244.98,244.97,3.6058234]
[1758258653027,101.0178838,244.98,244.97,3.6058234]
[1758258653224,101.0178838,244.98,244.97,10.4258234]
[1758258653729,99.66,244.98,244.97,10.4258234]
[1758258661134,1.22,245.03,244.97,10.42390526]
[1758258661332,1.22,245.03,244.99,6.66]
[1758258661540,1.22,245.03,245.0,10.26390526]
[1758258661839,1.22,245.03,245.01,3.60390526]
[1758258662137,1.22,245.03,245.02,3.60390526]
[1758258662739,99.64,245.04,245.02,3.60390526]
[1758258662935,99.64,245.04,245.03,3.60390526]
[1758258663436,100.85,245.04,245.03,3.60390526]
[1758258666332,100.85,245.04,245.01,0.03005853]
[1758258666536,1.21,245.03,245.01,0.03005853]
[1758258666736,1.21,245.02,245.01,0.03005853]
[1758258669643,99.64,245.04,245.02,6.66]
[1758258669843,100.85,245.04,245.01,0.03005853]
[1758258670539,100.85,245.04,245.01,6.69005853]
[1758258672450,99.64,245.04,245.02,6.66]
[1758258673738,100.85,245.04,245.01,0.03005853]
[1758258673943,100.85,245.04,245.01,6.69005853]
[1758258675049,100.85,245.04,245.01,0.03005853]
[1758258675249,99.64,245.04,245.02,6.66]
[1758258675646,100.85,245.04,245.01,0.03005853]
[1758258675847,1.21,245.03,245.01,0.03005853]
[1758258676649,99.64,245.04,245.01,6.69005853]
[1758258676844,100.85,245.04,245.01,6.69005853]
[1758258677454,100.85,245.04,245.02,6.66]
[1758258677855,99.64,245.04,245.01,0.03005853]
[1758258678555,99.64,245.04,245.02,6.66]
[1758258679258,99.64,245.04,245.01,0.03005853]
[1758258679559,99.64,245.04,245.02,6.66]
[1758258679756,99.64,245.04,245.01,0.03005853]
[1758258680456,99.64,245.04,245.02,6.66]
[1758258680651,99.64,245.04,245.01,0.03005853]
[1758258680856,99.64,245.04,245.02,6.66]
[1758258681054,99.64,245.04,245.01,0.03005853]
[1758258681255,99.64,245.04,245.02,6.66]
[1758258681455,99.64,245.04,245.01,0.03005853]
[1758258681655,99.64,245.04,245.02,6.66]
[1758258682157,0.02736238,245.05,245.02,6.66]
[1758258682359,0.02736238,245.05,245.01,0.03005853]
[1758258682550,0.02736238,245.05,245.02,6.66]
[1758258682755,0.02736238,245.05,245.01,0.03005853]
[1758258683352,0.02736238,245.05,245.02,6.66]
[1758258683558,0.02736238,245.05,245.01,0.03005853]
[1758258684349,0.02736238,245.05,245.02,6.66]
[1758258684550,0.02736238,245.05,245.01,0.03005853]
[1758258684951,0.02736238,245.05,245.02,6.66]
[1758258685153,0.02736238,245.05,245.01,0.03005853]
[1758258686159,0.02736238,245.05,245.02,6.66]
[1758258686363,0.02736238,245.05,245.01,0.03005853]
[1758258686561,0.02736238,245.05,245.02,6.66]
[1758258686762,0.02736238,245.05,245.01,0.03005853]
[1758258686962,0.02736238,245.05,245.04,6.66]
[1758258687163,0.02736238,245.05,245.04,7.06]
[1758258691663,100.79,245.15,245.04,7.06]
[1758258691864,100.79,245.15,245.04,6.66]
[1758258692167,100.79,245.15,245.04,10.331]
[1758258692467,100.79,245.15,245.05,7.07]
[1758258692964,100.79,245.15,245.08,7.07]
[1758258697661,82.8773508,245.29,245.1,7.07]
[1758258697662,1.25,245.21,245.1,7.07]
[1758258698266,1.25,245.21,245.13,0.03061682]
[1758258698466,1.25,245.21,245.14,7.07]
[1758258700673,1.25,245.21,245.15,3.56055869]
[1758258700973,1.25,245.23,245.16,3.56055869]
[1758258701275,1.25,245.23,245.17,3.56055869]
[1758258701470,1.25,245.23,245.18,3.56055869]
[1758258701663,1.25,245.23,245.19,3.55956071]
[1758258701868,1.25,245.23,245.16,7.07]
[1758258702062,1.25,245.23,245.19,0.02865121]
[1758258702274,0.71002295,245.24,245.19,0.02865121]
[1758258702773,1.25,245.23,245.19,0.02865121]
[1758258703068,0.71002295,245.24,245.19,0.02865121]
[1758258703372,1.25,245.23,245.19,0.02865121]
[1758258703572,0.71002295,245.24,245.19,0.02865121]
[1758258703772,1.25,245.23,245.19,0.02865121]
[1758258703965,0.71002295,245.24,245.19,0.02865121]
[1758258704470,1.25,245.23,245.19,0.02865121]
[1758258704671,0.71002295,245.24,245.19,0.02865121]
[1758258704874,1.25,245.23,245.19,0.02865121]
[1758258705067,0.71002295,245.24,245.19,0.02865121]
[1758258705272,1.25,245.23,245.19,0.02865121]
[1758258705473,1.25,245.25,245.19,7.09865121]
[1758258709376,1.07,245.25,245.19,7.09865121]
[1758258709568,99.48,245.26,245.2,3.55367165]
[1758258709772,99.48,245.26,245.21,10.62367165]
[1758258710076,99.48,245.26,245.21,7.07]
[1758258710279,0.70987088,245.27,245.21,7.07]
[1758258710678,99.48,245.29,245.22,10.62143805]
[1758258710873,99.48,245.29,245.22,7.07]
[1758258712070,99.48,245.29,245.23,3.54955118]
[1758258712276,99.48,245.29,245.22,7.07]
[1758258712481,99.48,245.29,245.23,3.54883995]
[1758258712774,99.48,245.29,245.22,7.07]
[1758258712775,100.55,245.29,245.24,3.54883859]
[1758258712980,100.55,245.29,245.25,10.61841806]
[1758258713177,100.55,245.29,245.25,7.07]
[1758258713376,100.55,245.29,245.25,7.10031842]
[1758258713778,99.48,245.31,245.25,7.10031842]
[1758258714382,1.07,245.3,245.25,0.03031842]
[1758258714583,1.07,245.28,245.25,0.03031842]
[1758258714986,2.12038011,245.29,245.25,0.03031842]
[1758258715180,1.07,245.28,245.25,0.03031842]
[1758258715683,2.12038011,245.29,245.25,0.03031842]
[1758258715987,1.07,245.28,245.25,0.03031842]
[1758258716285,2.12038011,245.29,245.25,0.03031842]
[1758258716481,1.07,245.28,245.25,0.03031842]
[1758258717081,2.12038011,245.29,245.25,0.03031842]
[1758258717782,1.07,245.28,245.25,0.03031842]
[1758258717985,2.12038011,245.29,245.25,0.03031842]
[1758258718174,1.07,245.28,245.25,0.03031842]
[1758258718681,1.07,245.28,245.26,3.54815305]
[1758258718982,1.07,245.28,245.27,3.54754757]
[1758258719182,1.07,245.28,245.25,6.82031842]
[1758258719183,1.07,245.3,245.25,0.03031842]
[1758258719383,1.07,245.3,245.26,3.54803297]
[1758258719585,2.12038011,245.29,245.25,0.03031842]
[1758258719783,2.12038011,245.29,245.26,3.5481557]
[1758258719985,2.12038011,245.29,245.25,0.03031842]
[1758258720185,1.07,245.28,245.26,3.54828021]
[1758258720377,1.07,245.28,245.25,0.03031842]
[1758258720576,1.07,245.28,245.26,3.54897125]
[1758258720786,1.07,245.28,245.25,0.03031842]
[1758258720982,101.56038011,245.29,245.26,3.54909408]
[1758258721186,101.56038011,245.29,245.25,0.03031842]
[1758258721387,1.07,245.28,245.26,3.54989091]
[1758258721588,101.56038011,245.29,245.25,0.03031842]
[1758258721788,101.56038011,245.29,245.26,3.54939459]
[1758258721984,1.07,245.28,245.25,0.03031842]
[1758258722185,101.56038011,245.29,245.26,3.54929365]
[1758258722480,101.56038011,245.29,245.25,0.03031842]
[1758258722687,1.07,245.28,245.26,3.54993906]
[1758258722887,1.07,245.28,245.25,0.03031842]
[1758258723088,1.07,245.28,245.26,3.54993906]
[1758258723392,99.44,245.29,245.25,0.03031842]
[1758258723590,1.07,245.28,245.26,3.55022864]
[1758258723790,1.07,245.28,245.25,6.82031842]
[1758258723987,1.07,245.28,245.26,3.55022864]
[1758258724187,1.07,245.28,245.27,3.55091802]
[1758258724390,1.07,245.28,245.25,6.82031842]
[1758258724589,1.07,245.28,245.26,3.55055052]
[1758258724788,1.07,245.28,245.27,3.55055052]
[1758258727187,99.44,245.29,245.27,3.55055052]
[1758258727387,0.02591175,245.3,245.28,10.34055052]
[1758258727691,0.02591175,245.3,245.29,3.55024855]
[1758258728095,0.02591175,245.3,245.29,10.34024855]
[1758258729382,0.02591175,245.3,245.29,3.55024855]
[1758258729582,1.09591175,245.3,245.29,3.55024855]
[1758258732702,0.02591175,245.3,245.29,10.34024855]
[1758258755520,0.02591175,245.3,245.29,11.69465264]
[1758258756815,0.02591175,245.3,245.29,10.34024855]
[1758258757015,0.02591175,245.3,245.29,11.69465264]
[1758258757213,2.06397101,245.38,245.3,6.95]
[1758258757417,2.06397101,245.38,245.32,6.95]
[1758258757717,2.06397101,245.38,245.34,6.95]
[1758258757917,0.70956692,245.38,245.36,6.95]
[1758258758118,0.70956692,245.38,245.37,3.55024855]
[1758258758318,1.09,245.39,245.37,3.55024855]
[1758258758519,1.09,245.39,245.38,3.55024855]
[1758258758921,31.11,245.4,245.38,10.50024855]
[1758258759114,31.11,245.4,245.39,3.55024855]
[1758258759317,1.09,245.4,245.39,3.55024855]
[1758258759720,2.06385528,245.41,245.39,3.55024855]
[1758258759919,3.15385528,245.41,245.4,3.55024855]
[1758258760516,1.79945119,245.41,245.4,3.55024855]
[1758258761921,0.70945119,245.41,245.4,10.50024855]
[1758258762121,100.439266,245.43,245.4,10.50024855]
[1758258762323,100.439266,245.43,245.41,3.55024855]
[1758258762522,100.439266,245.43,245.42,3.55024855]
[1758258763325,101.79367009,245.43,245.42,3.55024855]
[1758258765633,101.79367009,245.43,245.42,3.56945208]
[1758258769132,99.349266,245.43,245.42,3.56945208]
[1758258769425,100.439266,245.43,245.42,3.56945208]
[1758258769631,99.349266,245.43,245.42,3.56945208]
[1758258770541,99.349266,245.43,245.42,10.51945208]
[1758258771436,100.439266,245.43,245.42,3.56945208]
[1758258772141,99.349266,245.43,245.42,3.56945208]
[1758258774736,100.439266,245.43,245.42,3.56945208]
[1758258777248,100.439266,245.43,245.42,3.56178829]
[1758258787659,101.14863043,245.43,245.42,3.56178829]
[1758258788252,101.14863043,245.43,245.4,0.0284484]
[1758258788454,1.09,245.42,245.41,3.56566477]
[1758258794974,27.01,245.42,245.41,3.56566477]
[1758258796469,27.41,245.42,245.4,0.0284484]
[1758258796671,1.06,245.4,245.27,7.04]
[1758258796972,1.06,245.35,245.28,3.57259735]
[1758258797173,1.06,245.35,245.27,7.04]
[1758258797872,1.06,245.35,245.29,0.0291448]
[1758258799276,1.06,245.35,245.27,6.9491448]
[1758258800575,1.06,245.35,245.29,0.03065439]
[1758258800779,1.15,245.33,245.29,0.03065439]
[1758258801168,29.32,245.34,245.29,0.03065439]
[1758258801570,1.15,245.33,245.29,0.03065439]
[1758258801772,29.32,245.34,245.29,0.03065439]
[1758258801972,1.15,245.33,245.29,0.03065439]
[1758258802275,3.26363429,245.3,245.29,0.03065439]
[1758258802479,1.15,245.3,245.29,0.03065439]
[1758258804377,1.55,245.3,245.29,0.03065439]
[1758258804872,1.15,245.3,245.29,0.03065439]
[1758258805479,38.92,245.3,245.29,7.07065439]
[1758258806675,1.15,245.36,245.29,7.07065439]
[1758258806882,1.15,245.33,245.29,7.07065439]
[1758258807381,44.46,245.34,245.29,7.07065439]
[1758258808579,1.15,245.33,245.29,7.07065439]
[1758258808772,1.15,245.33,245.29,0.03065439]
[1758258809173,3.26363429,245.3,245.29,0.03065439]
[1758258813283,77.50363429,245.3,245.29,0.03065439]
[1758258813986,3.26363429,245.3,245.29,0.03065439]
[1758258814177,1.15,245.3,245.29,0.03065439]
[1758258814379,8.65,245.3,245.29,0.03065439]
[1758258814680,1.15,245.3,245.29,0.03065439]
[1758258817683,2.11363429,245.33,245.29,0.03065439]
[1758258817885,1.15,245.32,245.29,0.03065439]
[1758258818282,1.15,245.32,245.29,6.95065439]
[1758258818579,1.15,245.32,245.3,6.92]
[1758258818784,1.15,245.34,245.3,6.92]
[1758258819582,5.27421631,245.43,245.29,0.03065439]
[1758258819886,2.11363429,245.39,245.3,6.92]
[1758258820081,1.15,245.37,245.3,6.92]
[1758258820588,1.15,245.37,245.31,0.02691384]
[1758258821390,1.15,245.35,245.31,0.02691384]
[1758258823988,1.15,245.32,245.31,0.02691384]